[Event "Live Chess"]
[Site "Chess.com"]
[Date "2010.12.08"]
[Round "-"]
[White "hipposcottimus"]
[Black "EvanLopez"]
[Result "1-0"]
[CurrentPosition "rn3rk1/pp3pp1/4b2p/8/3N4/1NQ5/P4PPP/R4RK1 b - -"]
[Timezone "UTC"]
[ECO "C41"]
[ECOUrl "https://www.chess.com/openings/Philidor-Defense-3.Bc4"]
[UTCDate "2010.12.08"]
[UTCTime "01:43:42"]
[WhiteElo "1693"]
[BlackElo "1512"]
[TimeControl "60"]
[Termination "hipposcottimus won by resignation"]
[StartTime "01:43:42"]
[EndDate "2010.12.08"]
[EndTime "01:44:58"]
[Link "https://www.chess.com/game/live/75105738"]

1. e4 {[%clk 0:01:00]} 1... e5 {[%clk 0:01:00]} 2. Nf3 {[%clk 0:00:59.8]} 2... d6 {[%clk 0:00:59.6]} 3. Bc4 {[%clk 0:00:59.5]} 3... h6 {[%clk 0:00:59]} 4. d4 {[%clk 0:00:59.2]} 4... Nf6 {[%clk 0:00:58.7]} 5. dxe5 {[%clk 0:00:58.3]} 5... Nxe4 {[%clk 0:00:56.3]} 6. Qe2 {[%clk 0:00:53.7]} 6... Nc5 {[%clk 0:00:54.7]} 7. exd6+ {[%clk 0:00:51]} 7... Ne6 {[%clk 0:00:49.3]} 8. dxc7 {[%clk 0:00:45.4]} 8... Qxc7 {[%clk 0:00:48.5]} 9. O-O {[%clk 0:00:45.2]} 9... Bc5 {[%clk 0:00:46]} 10. b4 {[%clk 0:00:41.1]} 10... Bxb4 {[%clk 0:00:44.1]} 11. c3 {[%clk 0:00:40.2]} 11... Bc5 {[%clk 0:00:42.6]} 12. Nbd2 {[%clk 0:00:37.5]} 12... O-O {[%clk 0:00:41.6]} 13. Nb3 {[%clk 0:00:34.8]} 13... Bd6 {[%clk 0:00:40.1]} 14. Nfd4 {[%clk 0:00:31]} 14... Nf4 {[%clk 0:00:38.9]} 15. Qf3 {[%clk 0:00:29.3]} 15... Qxc4 {[%clk 0:00:37.4]} 16. Bxf4 {[%clk 0:00:27.7]} 16... Bxf4 {[%clk 0:00:36.5]} 17. Qxf4 {[%clk 0:00:27.4]} 17... Qxc3 {[%clk 0:00:35.6]} 18. Qg3 {[%clk 0:00:26.5]} 18... Be6 {[%clk 0:00:33.2]} 19. Qxc3 {[%clk 0:00:20.3]} 1-0

[Event "Live Chess"]
[Site "Chess.com"]
[Date "2010.12.08"]
[Round "-"]
[White "EvanLopez"]
[Black "hipposcottimus"]
[Result "1-0"]
[CurrentPosition "5r1k/P1b3pp/8/5p2/2P5/6P1/4Qq1P/4R2K b - -"]
[Timezone "UTC"]
[ECO "C55"]
[ECOUrl "https://www.chess.com/openings/Italian-Game-Two-Knights-Modern-Bishops-Opening-4...d5"]
[UTCDate "2010.12.08"]
[UTCTime "01:41:08"]
[WhiteElo "1516"]
[BlackElo "1689"]
[TimeControl "60"]
[Termination "EvanLopez won on time"]
[StartTime "01:41:08"]
[EndDate "2010.12.08"]
[EndTime "01:43:24"]
[Link "https://www.chess.com/game/live/75105152"]

1. e4 {[%clk 0:01:00]} 1... e5 {[%clk 0:01:00]} 2. Nf3 {[%clk 0:00:59.3]} 2... Nc6 {[%clk 0:00:59.7]} 3. Bc4 {[%clk 0:00:58.8]} 3... Nf6 {[%clk 0:00:59.3]} 4. d3 {[%clk 0:00:58.5]} 4... d5 {[%clk 0:00:58.5]} 5. Bg5 {[%clk 0:00:57.8]} 5... dxc4 {[%clk 0:00:57.4]} 6. Bxf6 {[%clk 0:00:57.6]} 6... Qxf6 {[%clk 0:00:56]} 7. dxc4 {[%clk 0:00:56.9]} 7... Bb4+ {[%clk 0:00:52.9]} 8. c3 {[%clk 0:00:55.3]} 8... Bc5 {[%clk 0:00:52.5]} 9. O-O {[%clk 0:00:53.5]} 9... Bg4 {[%clk 0:00:51.6]} 10. Nbd2 {[%clk 0:00:52.2]} 10... Bxf3 {[%clk 0:00:51.2]} 11. Nxf3 {[%clk 0:00:51.4]} 11... O-O {[%clk 0:00:50.9]} 12. b4 {[%clk 0:00:50.7]} 12... Be7 {[%clk 0:00:47.9]} 13. b5 {[%clk 0:00:49.7]} 13... Na5 {[%clk 0:00:46.1]} 14. Qa4 {[%clk 0:00:48.8]} 14... b6 {[%clk 0:00:44.7]} 15. Nd2 {[%clk 0:00:44.4]} 15... c6 {[%clk 0:00:44.3]} 16. Nb3 {[%clk 0:00:42.2]} 16... cxb5 {[%clk 0:00:41.6]} 17. Qxb5 {[%clk 0:00:40.9]} 17... a6 {[%clk 0:00:38.8]} 18. Qa4 {[%clk 0:00:36.9]} 18... b5 {[%clk 0:00:37.9]} 19. cxb5 {[%clk 0:00:35.6]} 19... axb5 {[%clk 0:00:37.2]} 20. Qxb5 {[%clk 0:00:34.9]} 20... Nxb3 {[%clk 0:00:35.8]} 21. Qxb3 {[%clk 0:00:34]} 21... Bc5 {[%clk 0:00:35]} 22. c4 {[%clk 0:00:32.1]} 22... Rac8 {[%clk 0:00:34.8]} 23. a4 {[%clk 0:00:30.8]} 23... Qf4 {[%clk 0:00:34.5]} 24. a5 {[%clk 0:00:29.6]} 24... Qxe4 {[%clk 0:00:34.2]} 25. a6 {[%clk 0:00:28.1]} 25... Rc7 {[%clk 0:00:33.3]} 26. Rfe1 {[%clk 0:00:26.1]} 26... Qd4 {[%clk 0:00:31.1]} 27. Ra2 {[%clk 0:00:22.8]} 27... Qd8 {[%clk 0:00:27]} 28. Rae2 {[%clk 0:00:21.7]} 28... Qd4 {[%clk 0:00:25.6]} 29. Rxe5 {[%clk 0:00:20]} 29... Qxf2+ {[%clk 0:00:24.6]} 30. Kh1 {[%clk 0:00:18.8]} 30... Re7 {[%clk 0:00:19.5]} 31. Qc3 {[%clk 0:00:14.8]} 31... Rxe5 {[%clk 0:00:18.1]} 32. Qxe5 {[%clk 0:00:13]} 32... Bd6 {[%clk 0:00:15.8]} 33. Qe4 {[%clk 0:00:11.1]} 33... Bf4 {[%clk 0:00:13.5]} 34. a7 {[%clk 0:00:09.7]} 34... f5 {[%clk 0:00:08]} 35. Qe6+ {[%clk 0:00:08]} 35... Kh8 {[%clk 0:00:06.4]} 36. g3 {[%clk 0:00:05.6]} 36... Bc7 {[%clk 0:00:01]} 37. Qe2 {[%clk 0:00:02]} 1-0

[Event "Live Chess"]
[Site "Chess.com"]
[Date "2010.12.08"]
[Round "-"]
[White "Marcocamillo"]
[Black "hipposcottimus"]
[Result "0-1"]
[CurrentPosition "2r3k1/pp4pp/8/8/1nbN4/8/1P1R2PP/3K4 w - -"]
[Timezone "UTC"]
[ECO "A00"]
[ECOUrl "https://www.chess.com/openings/Van-Geet-Opening-Reversed-Nimzowitsch-Variation-2.d4"]
[UTCDate "2010.12.08"]
[UTCTime "01:38:36"]
[WhiteElo "1453"]
[BlackElo "1700"]
[TimeControl "60"]
[Termination "hipposcottimus won on time"]
[StartTime "01:38:36"]
[EndDate "2010.12.08"]
[EndTime "01:40:35"]
[Link "https://www.chess.com/game/live/75104636"]

1. d4 {[%clk 0:01:00]} 1... e5 {[%clk 0:01:00]} 2. Nc3 {[%clk 0:00:59.7]} 2... e4 {[%clk 0:00:58.4]} 3. Bf4 {[%clk 0:00:58.2]} 3... d5 {[%clk 0:00:58.2]} 4. Nb5 {[%clk 0:00:57.5]} 4... Na6 {[%clk 0:00:53.5]} 5. Qd2 {[%clk 0:00:54.5]} 5... Nf6 {[%clk 0:00:52]} 6. Qe3 {[%clk 0:00:53.4]} 6... Bd6 {[%clk 0:00:47.7]} 7. Nxd6+ {[%clk 0:00:51.5]} 7... cxd6 {[%clk 0:00:47.1]} 8. Qg3 {[%clk 0:00:51.1]} 8... O-O {[%clk 0:00:41.5]} 9. Bxd6 {[%clk 0:00:49.1]} 9... Re8 {[%clk 0:00:41.1]} 10. Be5 {[%clk 0:00:45.3]} 10... Nh5 {[%clk 0:00:36.2]} 11. Qe3 {[%clk 0:00:28.9]} 11... f6 {[%clk 0:00:34]} 12. f3 {[%clk 0:00:27.9]} 12... fxe5 {[%clk 0:00:32.3]} 13. Qxe4 {[%clk 0:00:26.8]} 13... exd4 {[%clk 0:00:30.9]} 14. Qd3 {[%clk 0:00:24.7]} 14... Qe7 {[%clk 0:00:29.6]} 15. e4 {[%clk 0:00:24.3]} 15... dxe4 {[%clk 0:00:28.4]} 16. fxe4 {[%clk 0:00:22.8]} 16... Qxe4+ {[%clk 0:00:28.1]} 17. Qxe4 {[%clk 0:00:21.8]} 17... Rxe4+ {[%clk 0:00:27.8]} 18. Kd2 {[%clk 0:00:21.5]} 18... Bf5 {[%clk 0:00:25.4]} 19. Re1 {[%clk 0:00:21.5]} 19... Rc8 {[%clk 0:00:22.8]} 20. Rxe4 {[%clk 0:00:20.3]} 20... Bxe4 {[%clk 0:00:22.5]} 21. Ne2 {[%clk 0:00:19.1]} 21... Bxc2 {[%clk 0:00:21.2]} 22. Nxd4 {[%clk 0:00:17]} 22... Bg6 {[%clk 0:00:20.6]} 23. Bd3 {[%clk 0:00:12.6]} 23... Bf7 {[%clk 0:00:17.2]} 24. Rd1 {[%clk 0:00:09.3]} 24... Nf4 {[%clk 0:00:16.2]} 25. Be2 {[%clk 0:00:05.9]} 25... Nxe2 {[%clk 0:00:15.1]} 26. Kxe2 {[%clk 0:00:04.4]} 26... Bxa2 {[%clk 0:00:14.8]} 27. Rd2 {[%clk 0:00:03.2]} 27... Bc4+ {[%clk 0:00:14.5]} 28. Kd1 {[%clk 0:00:01.8]} 28... Nb4 {[%clk 0:00:14.1]} 0-1

[Event "Live Chess"]
[Site "Chess.com"]
[Date "2010.12.08"]
[Round "-"]
[White "hipposcottimus"]
[Black "CryingWolf"]
[Result "1-0"]
[CurrentPosition "r7/ppk5/2pb1p1p/8/4N3/1P1P3P/1PP2P1P/R5RK b - -"]
[Timezone "UTC"]
[ECO "C57"]
[ECOUrl "https://www.chess.com/openings/Italian-Game-Fried-Liver-Attack"]
[UTCDate "2010.12.08"]
[UTCTime "01:35:41"]
[WhiteElo "1697"]
[BlackElo "1532"]
[TimeControl "60"]
[Termination "hipposcottimus won on time"]
[StartTime "01:35:41"]
[EndDate "2010.12.08"]
[EndTime "01:37:39"]
[Link "https://www.chess.com/game/live/75103976"]

1. e4 {[%clk 0:01:00]} 1... e5 {[%clk 0:01:00]} 2. Nf3 {[%clk 0:00:59.7]} 2... Nc6 {[%clk 0:00:59.7]} 3. Bc4 {[%clk 0:00:59.3]} 3... Nf6 {[%clk 0:00:59.1]} 4. Ng5 {[%clk 0:00:58]} 4... d5 {[%clk 0:00:58.3]} 5. exd5 {[%clk 0:00:57.7]} 5... Nxd5 {[%clk 0:00:57.2]} 6. Nxf7 {[%clk 0:00:57.1]} 6... Qd7 {[%clk 0:00:48.4]} 7. Nxh8 {[%clk 0:00:50.4]} 7... Nf6 {[%clk 0:00:40.8]} 8. Bf7+ {[%clk 0:00:46.5]} 8... Kd8 {[%clk 0:00:38.5]} 9. Bb3 {[%clk 0:00:46.2]} 9... Nd4 {[%clk 0:00:36.5]} 10. Nf7+ {[%clk 0:00:42.3]} 10... Ke8 {[%clk 0:00:34.2]} 11. Nxe5 {[%clk 0:00:41.4]} 11... Qe7 {[%clk 0:00:31.8]} 12. O-O {[%clk 0:00:38.2]} 12... Nxb3 {[%clk 0:00:26.8]} 13. axb3 {[%clk 0:00:34.2]} 13... Kd8 {[%clk 0:00:25.9]} 14. Nf3 {[%clk 0:00:30.9]} 14... Qe4 {[%clk 0:00:19.5]} 15. d3 {[%clk 0:00:29.6]} 15... Qg4 {[%clk 0:00:18.1]} 16. Bg5 {[%clk 0:00:27.3]} 16... h6 {[%clk 0:00:15.4]} 17. Bxf6+ {[%clk 0:00:26.5]} 17... gxf6 {[%clk 0:00:14.7]} 18. Re1 {[%clk 0:00:26.1]} 18... Qg6 {[%clk 0:00:13.1]} 19. Nc3 {[%clk 0:00:25.3]} 19... Bh3 {[%clk 0:00:11.8]} 20. Nh4 {[%clk 0:00:22.4]} 20... Qg5 {[%clk 0:00:09.3]} 21. Qf3 {[%clk 0:00:16.7]} 21... Qxh4 {[%clk 0:00:05.4]} 22. Qxh3 {[%clk 0:00:15.9]} 22... Qxh3 {[%clk 0:00:03.3]} 23. gxh3 {[%clk 0:00:15.7]} 23... c6 {[%clk 0:00:02.7]} 24. Kh1 {[%clk 0:00:15.2]} 24... Kc7 {[%clk 0:00:02]} 25. Rg1 {[%clk 0:00:14.6]} 25... Bd6 {[%clk 0:00:01.1]} 26. Ne4 {[%clk 0:00:13.9]} 1-0

[Event "Live Chess"]
[Site "Chess.com"]
[Date "2010.12.08"]
[Round "-"]
[White "CryingWolf"]
[Black "hipposcottimus"]
[Result "0-1"]
[CurrentPosition "5rr1/ppkb3p/2pbq3/4p3/4Q2P/2PP4/P1P2PP1/R1B1K2R w KQ -"]
[Timezone "UTC"]
[ECO "C57"]
[ECOUrl "https://www.chess.com/openings/Italian-Game-Knight-Attack-Polerio-Defense"]
[UTCDate "2010.12.08"]
[UTCTime "01:33:24"]
[WhiteElo "1537"]
[BlackElo "1692"]
[TimeControl "60"]
[Termination "hipposcottimus won on time"]
[StartTime "01:33:24"]
[EndDate "2010.12.08"]
[EndTime "01:35:12"]
[Link "https://www.chess.com/game/live/75103483"]

1. e4 {[%clk 0:01:00]} 1... e5 {[%clk 0:01:00]} 2. Nf3 {[%clk 0:00:59.6]} 2... Nc6 {[%clk 0:00:59.6]} 3. Bc4 {[%clk 0:00:59.2]} 3... Nf6 {[%clk 0:00:59.3]} 4. Ng5 {[%clk 0:00:55.5]} 4... d5 {[%clk 0:00:58.9]} 5. exd5 {[%clk 0:00:54.4]} 5... Na5 {[%clk 0:00:58.4]} 6. Qe2 {[%clk 0:00:48.4]} 6... Nxc4 {[%clk 0:00:55]} 7. Qxc4 {[%clk 0:00:47.3]} 7... Be7 {[%clk 0:00:54.7]} 8. d6 {[%clk 0:00:43]} 8... Qxd6 {[%clk 0:00:47.9]} 9. Qxf7+ {[%clk 0:00:41]} 9... Kd7 {[%clk 0:00:47.5]} 10. Qxg7 {[%clk 0:00:38.4]} 10... Rg8 {[%clk 0:00:45.7]} 11. Qh6 {[%clk 0:00:35.4]} 11... Bf8 {[%clk 0:00:42.6]} 12. Qh4 {[%clk 0:00:27.7]} 12... Be7 {[%clk 0:00:42.3]} 13. Qc4 {[%clk 0:00:23.6]} 13... Nd5 {[%clk 0:00:38.2]} 14. Nf7 {[%clk 0:00:22.2]} 14... Qe6 {[%clk 0:00:35.7]} 15. Qa4+ {[%clk 0:00:18.7]} 15... c6 {[%clk 0:00:31.7]} 16. Nd8 {[%clk 0:00:07.5]} 16... Kxd8 {[%clk 0:00:30.3]} 17. Nc3 {[%clk 0:00:06.5]} 17... Bd7 {[%clk 0:00:28.2]} 18. d3 {[%clk 0:00:05.5]} 18... Nxc3 {[%clk 0:00:26.7]} 19. bxc3 {[%clk 0:00:02.7]} 19... Bd6 {[%clk 0:00:26.1]} 20. Qe4 {[%clk 0:00:01.4]} 20... Kc7 {[%clk 0:00:23.9]} 21. h4 {[%clk 0:00:00.3]} 21... Raf8 {[%clk 0:00:22.5]} 0-1

[Event "Live Chess"]
[Site "Chess.com"]
[Date "2010.12.08"]
[Round "-"]
[White "hipposcottimus"]
[Black "CryingWolf"]
[Result "1-0"]
[CurrentPosition "4rrk1/1p3pp1/2p4p/4b3/P1P3P1/5R2/7P/5R1K b - -"]
[Timezone "UTC"]
[ECO "C55"]
[ECOUrl "https://www.chess.com/openings/Italian-Game-Anti-Fried-Liver-Defense"]
[UTCDate "2010.12.08"]
[UTCTime "01:30:49"]
[WhiteElo "1687"]
[BlackElo "1542"]
[TimeControl "60"]
[Termination "hipposcottimus won on time"]
[StartTime "01:30:49"]
[EndDate "2010.12.08"]
[EndTime "01:32:57"]
[Link "https://www.chess.com/game/live/75102855"]

1. e4 {[%clk 0:01:00]} 1... e5 {[%clk 0:01:00]} 2. Nf3 {[%clk 0:00:59.5]} 2... Nc6 {[%clk 0:00:59.6]} 3. Bc4 {[%clk 0:00:59.2]} 3... h6 {[%clk 0:00:57.9]} 4. d4 {[%clk 0:00:57.6]} 4... exd4 {[%clk 0:00:56.6]} 5. Nxd4 {[%clk 0:00:57.4]} 5... Nf6 {[%clk 0:00:56.2]} 6. e5 {[%clk 0:00:56.4]} 6... Ng8 {[%clk 0:00:49.4]} 7. Nf3 {[%clk 0:00:54.2]} 7... Qe7 {[%clk 0:00:46.8]} 8. Nc3 {[%clk 0:00:53.9]} 8... Nxe5 {[%clk 0:00:44.5]} 9. O-O {[%clk 0:00:53.5]} 9... d6 {[%clk 0:00:41.2]} 10. Nd5 {[%clk 0:00:50.3]} 10... Qd8 {[%clk 0:00:39]} 11. Nxe5 {[%clk 0:00:48.5]} 11... dxe5 {[%clk 0:00:35.7]} 12. Re1 {[%clk 0:00:48.2]} 12... Bd6 {[%clk 0:00:32.7]} 13. f4 {[%clk 0:00:46.4]} 13... Be6 {[%clk 0:00:27.2]} 14. fxe5 {[%clk 0:00:44.8]} 14... Bc5+ {[%clk 0:00:25.7]} 15. Kh1 {[%clk 0:00:36.1]} 15... c6 {[%clk 0:00:24.1]} 16. Nf4 {[%clk 0:00:32.3]} 16... Qxd1 {[%clk 0:00:21]} 17. Rxd1 {[%clk 0:00:32]} 17... Bxc4 {[%clk 0:00:19.9]} 18. c3 {[%clk 0:00:30.4]} 18... Ne7 {[%clk 0:00:18.6]} 19. Bd2 {[%clk 0:00:29]} 19... Bd5 {[%clk 0:00:15.9]} 20. Nxd5 {[%clk 0:00:27.7]} 20... Nxd5 {[%clk 0:00:14.6]} 21. Be1 {[%clk 0:00:24.9]} 21... Ne3 {[%clk 0:00:12.8]} 22. Rd3 {[%clk 0:00:22.5]} 22... Nc2 {[%clk 0:00:11.7]} 23. Rc1 {[%clk 0:00:20.2]} 23... Nxe1 {[%clk 0:00:10.7]} 24. Rxe1 {[%clk 0:00:20]} 24... O-O {[%clk 0:00:10.2]} 25. Rf3 {[%clk 0:00:19.3]} 25... Rfe8 {[%clk 0:00:09.2]} 26. Ref1 {[%clk 0:00:19]} 26... Rf8 {[%clk 0:00:07.2]} 27. b4 {[%clk 0:00:15.8]} 27... Bb6 {[%clk 0:00:05.6]} 28. g3 {[%clk 0:00:15.4]} 28... a5 {[%clk 0:00:04.8]} 29. a4 {[%clk 0:00:15.1]} 29... Rae8 {[%clk 0:00:04.3]} 30. bxa5 {[%clk 0:00:13.8]} 30... Bxa5 {[%clk 0:00:03.5]} 31. Rf5 {[%clk 0:00:12.9]} 31... Bb6 {[%clk 0:00:02.7]} 32. c4 {[%clk 0:00:11.4]} 32... Bc7 {[%clk 0:00:01.9]} 33. g4 {[%clk 0:00:08.9]} 33... Bxe5 {[%clk 0:00:00.9]} 34. R5f3 {[%clk 0:00:08.5]} 1-0

[Event "Live Chess"]
[Site "Chess.com"]
[Date "2010.12.08"]
[Round "-"]
[White "CryingWolf"]
[Black "hipposcottimus"]
[Result "1-0"]
[CurrentPosition "r1b1R1k1/pp3ppp/3r4/3p4/8/3P1N2/PPP3PP/R5K1 b - -"]
[Timezone "UTC"]
[ECO "C57"]
[ECOUrl "https://www.chess.com/openings/Italian-Game-Knight-Attack-Polerio-Defense"]
[UTCDate "2010.12.08"]
[UTCTime "01:28:37"]
[WhiteElo "1547"]
[BlackElo "1682"]
[TimeControl "60"]
[Termination "CryingWolf won by checkmate"]
[StartTime "01:28:37"]
[EndDate "2010.12.08"]
[EndTime "01:30:08"]
[Link "https://www.chess.com/game/live/75102451"]

1. e4 {[%clk 0:01:00]} 1... e5 {[%clk 0:01:00]} 2. Nf3 {[%clk 0:00:59]} 2... Nc6 {[%clk 0:00:59.5]} 3. Bc4 {[%clk 0:00:58.6]} 3... Nf6 {[%clk 0:00:59.2]} 4. Ng5 {[%clk 0:00:56.9]} 4... d5 {[%clk 0:00:58.5]} 5. exd5 {[%clk 0:00:56.3]} 5... Na5 {[%clk 0:00:58.2]} 6. Qe2 {[%clk 0:00:52.4]} 6... Nxc4 {[%clk 0:00:55.9]} 7. Qxc4 {[%clk 0:00:51.1]} 7... Nxd5 {[%clk 0:00:55.6]} 8. d3 {[%clk 0:00:44.3]} 8... Be7 {[%clk 0:00:54.8]} 9. Nf3 {[%clk 0:00:31.8]} 9... O-O {[%clk 0:00:54.4]} 10. Nxe5 {[%clk 0:00:28.9]} 10... Nb6 {[%clk 0:00:53.5]} 11. Qc3 {[%clk 0:00:19.5]} 11... Bd6 {[%clk 0:00:53.1]} 12. Nf3 {[%clk 0:00:17.5]} 12... Re8+ {[%clk 0:00:52.6]} 13. Be3 {[%clk 0:00:17.1]} 13... Bf4 {[%clk 0:00:51.7]} 14. O-O {[%clk 0:00:16.2]} 14... Bxe3 {[%clk 0:00:50.9]} 15. fxe3 {[%clk 0:00:15.5]} 15... Rxe3 {[%clk 0:00:50.6]} 16. Qd4 {[%clk 0:00:13.8]} 16... Nd5 {[%clk 0:00:46.4]} 17. Nc3 {[%clk 0:00:09.8]} 17... Re6 {[%clk 0:00:43]} 18. Nxd5 {[%clk 0:00:08.6]} 18... Rd6 {[%clk 0:00:42.1]} 19. Rfe1 {[%clk 0:00:07.5]} 19... c6 {[%clk 0:00:41.7]} 20. Qe5 {[%clk 0:00:05.8]} 20... cxd5 {[%clk 0:00:39.3]} 21. Qe8+ {[%clk 0:00:04.8]} 21... Qxe8 {[%clk 0:00:35.7]} 22. Rxe8# {[%clk 0:00:04.2]} 1-0

[Event "Live Chess"]
[Site "Chess.com"]
[Date "2010.12.08"]
[Round "-"]
[White "hipposcottimus"]
[Black "JakobBrenner"]
[Result "1-0"]
[CurrentPosition "2r3k1/1p4pp/4b1p1/1p1p3n/1P1P4/P7/5RPP/6K1 b - -"]
[Timezone "UTC"]
[ECO "C02"]
[ECOUrl "https://www.chess.com/openings/French-Defense-Advance-Nimzowitsch-System"]
[UTCDate "2010.12.08"]
[UTCTime "01:25:59"]
[WhiteElo "1692"]
[BlackElo "1511"]
[TimeControl "60"]
[Termination "hipposcottimus won on time"]
[StartTime "01:25:59"]
[EndDate "2010.12.08"]
[EndTime "01:27:57"]
[Link "https://www.chess.com/game/live/75101914"]

1. e4 {[%clk 0:01:00]} 1... e6 {[%clk 0:01:00]} 2. Nf3 {[%clk 0:00:59.7]} 2... d5 {[%clk 0:01:00]} 3. e5 {[%clk 0:00:59.4]} 3... c5 {[%clk 0:00:58.6]} 4. d4 {[%clk 0:00:59.1]} 4... Qb6 {[%clk 0:00:58]} 5. Na3 {[%clk 0:00:55]} 5... Nc6 {[%clk 0:00:53.2]} 6. Bb5 {[%clk 0:00:54.4]} 6... Bd7 {[%clk 0:00:52.2]} 7. Be3 {[%clk 0:00:53.2]} 7... a6 {[%clk 0:00:49.9]} 8. dxc5 {[%clk 0:00:52.1]} 8... Bxc5 {[%clk 0:00:46.8]} 9. Bd4 {[%clk 0:00:43.8]} 9... axb5 {[%clk 0:00:44.9]} 10. O-O {[%clk 0:00:40.6]} 10... Bxd4 {[%clk 0:00:41.5]} 11. Nxd4 {[%clk 0:00:38.8]} 11... Nxd4 {[%clk 0:00:40.6]} 12. c3 {[%clk 0:00:38.5]} 12... Nc6 {[%clk 0:00:38.4]} 13. b4 {[%clk 0:00:38.2]} 13... Nxe5 {[%clk 0:00:37.1]} 14. Nc2 {[%clk 0:00:38]} 14... Nf6 {[%clk 0:00:33.4]} 15. Nd4 {[%clk 0:00:37.7]} 15... Nc6 {[%clk 0:00:31.4]} 16. Qe2 {[%clk 0:00:37.4]} 16... Nxd4 {[%clk 0:00:30.2]} 17. cxd4 {[%clk 0:00:37.2]} 17... O-O {[%clk 0:00:28.3]} 18. Rfe1 {[%clk 0:00:36.8]} 18... Ne4 {[%clk 0:00:27.2]} 19. Qe3 {[%clk 0:00:35.9]} 19... Nf6 {[%clk 0:00:24.4]} 20. a3 {[%clk 0:00:35.2]} 20... Bc6 {[%clk 0:00:23]} 21. Qg3 {[%clk 0:00:34.6]} 21... Qd8 {[%clk 0:00:20.7]} 22. Re3 {[%clk 0:00:33.7]} 22... Rc8 {[%clk 0:00:14.6]} 23. Rf3 {[%clk 0:00:33.3]} 23... Be8 {[%clk 0:00:12.9]} 24. Re1 {[%clk 0:00:30.5]} 24... Ne4 {[%clk 0:00:11.8]} 25. Qg4 {[%clk 0:00:27.1]} 25... Qf6 {[%clk 0:00:09]} 26. Rh3 {[%clk 0:00:25.4]} 26... Qg6 {[%clk 0:00:07.3]} 27. Qxg6 {[%clk 0:00:23.7]} 27... fxg6 {[%clk 0:00:06.7]} 28. f3 {[%clk 0:00:23.4]} 28... Nf6 {[%clk 0:00:04.8]} 29. Rg3 {[%clk 0:00:23.1]} 29... e5 {[%clk 0:00:04]} 30. f4 {[%clk 0:00:22.4]} 30... exf4 {[%clk 0:00:02.7]} 31. Rf3 {[%clk 0:00:22.1]} 31... Bf7 {[%clk 0:00:02.1]} 32. Rxf4 {[%clk 0:00:21.3]} 32... Nh5 {[%clk 0:00:02.1]} 33. Rf2 {[%clk 0:00:20.6]} 33... Be6 {[%clk 0:00:01.4]} 34. Ref1 {[%clk 0:00:20.3]} 34... Rxf2 {[%clk 0:00:00.2]} 35. Rxf2 {[%clk 0:00:20]} 1-0

[Event "Live Chess"]
[Site "Chess.com"]
[Date "2010.12.08"]
[Round "-"]
[White "vinkos5"]
[Black "hipposcottimus"]
[Result "1-0"]
[CurrentPosition "8/7p/6p1/R4n1k/6PP/7K/8/8 b - -"]
[Timezone "UTC"]
[ECO "D00"]
[ECOUrl "https://www.chess.com/openings/Queens-Pawn-Opening-1...d5-2.e3"]
[UTCDate "2010.12.08"]
[UTCTime "01:14:30"]
[WhiteElo "1741"]
[BlackElo "1688"]
[TimeControl "60"]
[Termination "vinkos5 won on time"]
[StartTime "01:14:30"]
[EndDate "2010.12.08"]
[EndTime "01:16:53"]
[Link "https://www.chess.com/game/live/75099244"]

1. d4 {[%clk 0:01:00]} 1... d5 {[%clk 0:01:00]} 2. e3 {[%clk 0:01:00]} 2... c6 {[%clk 0:00:59.1]} 3. c4 {[%clk 0:01:00]} 3... Nd7 {[%clk 0:00:57.8]} 4. cxd5 {[%clk 0:00:59.4]} 4... Ngf6 {[%clk 0:00:57.6]} 5. Nc3 {[%clk 0:00:59]} 5... cxd5 {[%clk 0:00:56.5]} 6. Bd3 {[%clk 0:00:57.8]} 6... e6 {[%clk 0:00:56.2]} 7. f3 {[%clk 0:00:57]} 7... Bb4 {[%clk 0:00:55.9]} 8. Ne2 {[%clk 0:00:55.8]} 8... e5 {[%clk 0:00:55.4]} 9. a3 {[%clk 0:00:54.7]} 9... exd4 {[%clk 0:00:52.2]} 10. axb4 {[%clk 0:00:52.2]} 10... dxc3 {[%clk 0:00:51.8]} 11. bxc3 {[%clk 0:00:50.2]} 11... O-O {[%clk 0:00:51.5]} 12. O-O {[%clk 0:00:49]} 12... Nb6 {[%clk 0:00:51]} 13. Bc2 {[%clk 0:00:48]} 13... Bf5 {[%clk 0:00:49.8]} 14. e4 {[%clk 0:00:46.5]} 14... dxe4 {[%clk 0:00:47.7]} 15. Qxd8 {[%clk 0:00:43.8]} 15... Raxd8 {[%clk 0:00:45.6]} 16. fxe4 {[%clk 0:00:43.8]} 16... Bxe4 {[%clk 0:00:43.2]} 17. Bxe4 {[%clk 0:00:42.3]} 17... Nxe4 {[%clk 0:00:42.9]} 18. Nd4 {[%clk 0:00:41.5]} 18... Nxc3 {[%clk 0:00:41.5]} 19. Bb2 {[%clk 0:00:40.9]} 19... Ncd5 {[%clk 0:00:39.6]} 20. Rf3 {[%clk 0:00:33.9]} 20... Nxb4 {[%clk 0:00:38]} 21. Rg3 {[%clk 0:00:32.4]} 21... g6 {[%clk 0:00:36.3]} 22. Nf5 {[%clk 0:00:27.8]} 22... f6 {[%clk 0:00:31.7]} 23. Nh6+ {[%clk 0:00:21.4]} 23... Kh8 {[%clk 0:00:30.9]} 24. Ng4 {[%clk 0:00:20]} 24... Kg7 {[%clk 0:00:27.3]} 25. Bxf6+ {[%clk 0:00:18.6]} 25... Rxf6 {[%clk 0:00:26.7]} 26. Nxf6 {[%clk 0:00:17.3]} 26... Kxf6 {[%clk 0:00:26.3]} 27. Rf1+ {[%clk 0:00:16.6]} 27... Kg7 {[%clk 0:00:26.1]} 28. Re3 {[%clk 0:00:13.7]} 28... N4d5 {[%clk 0:00:25.8]} 29. Rd3 {[%clk 0:00:10]} 29... Rd7 {[%clk 0:00:22.3]} 30. Rb1 {[%clk 0:00:08.6]} 30... Nf4 {[%clk 0:00:20.5]} 31. Rxd7+ {[%clk 0:00:06.6]} 31... Nxd7 {[%clk 0:00:20.2]} 32. Rxb7 {[%clk 0:00:05.6]} 32... Ne6 {[%clk 0:00:16.8]} 33. Rxd7+ {[%clk 0:00:05.1]} 33... Kf6 {[%clk 0:00:16.5]} 34. Rxa7 {[%clk 0:00:04.3]} 34... Nf4 {[%clk 0:00:16.1]} 35. Ra2 {[%clk 0:00:04.3]} 35... Ne6 {[%clk 0:00:13.8]} 36. Rf2+ {[%clk 0:00:04.3]} 36... Kg7 {[%clk 0:00:12.8]} 37. g3 {[%clk 0:00:04.3]} 37... Ng5 {[%clk 0:00:11.8]} 38. h4 {[%clk 0:00:04.3]} 38... Ne4 {[%clk 0:00:10.9]} 39. Rf3 {[%clk 0:00:03.1]} 39... Nd2 {[%clk 0:00:09.6]} 40. Ra3 {[%clk 0:00:03.1]} 40... Ne4 {[%clk 0:00:08]} 41. Ra7+ {[%clk 0:00:03.1]} 41... Kh6 {[%clk 0:00:06.5]} 42. Ra8 {[%clk 0:00:03.1]} 42... Kh5 {[%clk 0:00:05.9]} 43. Ra4 {[%clk 0:00:03.1]} 43... Nf6 {[%clk 0:00:02.8]} 44. Kg2 {[%clk 0:00:03.1]} 44... Ng4 {[%clk 0:00:01.9]} 45. Kh3 {[%clk 0:00:01.4]} 45... Ne3 {[%clk 0:00:00.9]} 46. Ra5+ {[%clk 0:00:01.4]} 46... Nf5 {[%clk 0:00:00.6]} 47. g4+ {[%clk 0:00:00.2]} 1-0